fUSD/lending_fUSD_20250514
["ID","MTS","AMOUNT","RATE_DAILY","PERIOD"]
[361007884,1747199444783,-406.94,0.00010958,2]
[361007885,1747199444794,-400.0,0.00010958,2]
[361007886,1747199444804,-400.0,0.00010958,2]
[361007887,1747199444814,-400.0,0.00010958,2]
[361007888,1747199444823,-479.07536709,0.00010958,2]
[361007889,1747199444833,-500.0,0.00010959,2]
[361007890,1747199444843,-2000.0,0.00010959,2]
[361007891,1747199444853,-500.0,0.00010959,2]
[361007892,1747199444863,-200.0,0.00010959,2]
[361007893,1747199444872,-200.0,0.00010959,2]
[361007894,1747199444882,-150.0,0.00010959,2]
[361007895,1747199444891,-500.0,0.00010959,2]
[361007896,1747199444902,-500.0,0.00010959,2]
[361007897,1747199444913,-500.0,0.00010959,2]
[361007898,1747199444922,-500.0,0.00010959,2]
[361007899,1747199444932,-500.0,0.00010959,2]
[361007900,1747199444943,-397.25371356,0.00010959,2]
[361007901,1747199444954,-500.0,0.00010959,2]
[361007902,1747199444964,-500.0,0.00010959,2]
[361007903,1747199444975,-500.0,0.00010959,2]
[361007904,1747199444984,-500.0,0.00010959,2]
[361007905,1747199444994,-500.0,0.00010959,2]
[361007906,1747199445003,-500.0,0.00010959,2]
[361007907,1747199445013,-500.0,0.00010959,2]
[361007908,1747199445022,-500.0,0.00010959,2]
[361007909,1747199445032,-2537.51,0.00010959,2]
[361007910,1747199445041,-500.0,0.00010959,2]
[361007911,1747199445051,-500.0,0.00010959,2]
[361007912,1747199445060,-500.0,0.00010959,2]
[361007913,1747199445070,-500.0,0.00010959,2]
[361007914,1747199445079,-500.0,0.00010959,2]
[361007915,1747199445089,-500.0,0.00010959,2]
[361007916,1747199445098,-500.0,0.00010959,2]
[361007917,1747199445107,-500.0,0.00010959,2]
[361007918,1747199445117,-500.0,0.00010959,2]
[361007919,1747199445127,-500.0,0.00010959,2]
[361007920,1747199445136,-388.62335232,0.00010959,2]
[361007921,1747199445146,-595.12429385,0.00010959,2]
[361007922,1747199445156,-2344.641,0.00010968,2]
[361007923,1747199445166,-174.781,0.00010968,2]
[361007924,1747199445175,-400.0,0.00010972,2]
[361007925,1747199445185,-400.0,0.00010972,2]
[361007926,1747199445194,-402.42367868,0.00010972,2]
[361007927,1747199445203,-400.97136115,0.00010972,2]
[361007928,1747199445213,-402.38568433,0.00010972,2]
[361007929,1747199445222,-401.49839518,0.00010972,2]
[361007930,1747199445232,-400.0,0.00010972,2]
[361007931,1747199445242,-402.17396013,0.00010972,2]
[361007932,1747199445251,-227.80260291,0.00010972,2]
[361007933,1747199445261,-400.74211053,0.00010972,2]
[361007934,1747199445270,-402.31038493,0.00010972,2]
[361007935,1747199445279,-401.01031783,0.00010972,2]
[361007936,1747199445289,-402.51836474,0.00010972,2]
[361007937,1747199445298,-400.0,0.00010972,2]
[361007938,1747199445307,-400.0,0.00010972,2]
[361007939,1747199445317,-401.34813271,0.00010972,2]
[361007941,1747199445326,-395.71360289,0.00010972,2]
[361007943,1747199445336,-400.0,0.00010972,2]
[361007944,1747199445345,-400.0,0.00010972,2]
[361007945,1747199445354,-402.73905123,0.00010972,2]
[361007947,1747199445364,-403.21848092,0.00010972,2]
[361007948,1747199445374,-283.04182109,0.00010972,2]
[361007949,1747199445383,-200.48483952,0.00010972,2]
[361007951,1747199445393,-400.0,0.00010972,2]
[361007952,1747199445413,-1884.45,0.00010972,2]
[361007953,1747199445423,-637.25,0.00010972,2]
[361007954,1747199445433,-400.0,0.00010972,2]
[361007955,1747199445442,-719.83,0.00010972,2]
[361007956,1747199445452,-400.0,0.00010972,2]
[361007957,1747199445462,-1577.66,0.00010972,2]
[361007958,1747199445472,-400.0,0.00010972,2]
[361007959,1747199445483,-400.0,0.00010972,2]
[361007960,1747199445493,-400.0,0.00010972,2]
[361007961,1747199445503,-6011.31,0.00010972,2]
[361007962,1747199445512,-400.0,0.00010972,2]
[361007963,1747199445522,-1577.89,0.00010972,2]
[361007964,1747199445533,-400.0,0.00010972,2]
[361007965,1747199445542,-545.38,0.00010972,2]
[361007966,1747199445553,-400.0,0.00010972,2]
[361007967,1747199445564,-413.24795056,0.00010972,2]
[361007968,1747199445575,-4820.29,0.00010972,2]
[361007969,1747199445584,-702.28,0.00010972,2]
[361007970,1747199445594,-400.0,0.00010972,2]
[361007971,1747199445603,-500.0,0.00010973,2]
[361007972,1747199445614,-500.0,0.00010973,2]
[361007973,1747199445627,-169.71787666,0.00010973,2]
[361007974,1747199445636,-500.0,0.00010973,2]
[361007975,1747199445645,-500.74484075,0.00010973,2]
[361007976,1747199445656,-502.27405274,0.00010973,2]
[361007977,1747199445666,-505.71531887,0.00010973,2]
[361007978,1747199445676,-500.0,0.00010973,2]
[361007979,1747199445686,-500.2651642,0.00010973,2]
[361007980,1747199445696,-170.3110274,0.00010973,2]
[361007981,1747199445706,-500.0,0.00010973,2]
[361007982,1747199445716,-280.43518902,0.00010973,2]
[361007983,1747199445726,-500.0,0.00010973,2]
[361007984,1747199445736,-501.53942014,0.00010973,2]
[361007985,1747199445745,-500.0,0.00010973,2]
[361007986,1747199445757,-500.0,0.00010973,2]
[361007987,1747199445766,-2238.0,0.00010986,2]
[361007988,1747199445776,-500.0,0.00010991,2]
[361007989,1747199445786,-500.0,0.00010991,2]
[361007990,1747199445796,-500.0,0.00010991,2]
[361007991,1747199445805,-150.207,0.00010993,2]
[361007992,1747199445815,-150.093,0.00010993,2]
[361007993,1747199445825,-183.133,0.00010993,2]
[361007994,1747199445835,-1305.0,0.00010993,2]
[361007995,1747199445844,-931.0,0.00010993,2]
[361007996,1747199445854,-271.718199,0.00010997,2]
[361007997,1747199445863,-271.718199,0.00010997,2]
[361007998,1747199445872,-177024.0856596,0.00010997,2]
[361007999,1747199445882,-151.0,0.00010997,2]
[361008000,1747199445891,-192.866883,0.00010997,2]
[361008001,1747199445902,-192.866883,0.00010997,2]
[361008002,1747199445912,-151.0,0.00010997,2]
[361008007,1747199446082,-151.0,0.00010997,2]
[361008009,1747199446092,-151.0,0.00010997,2]
[361008011,1747199446102,-151.0,0.00010997,2]
[361008013,1747199446111,-151.0,0.00010997,2]
[361008015,1747199446120,-151.0,0.00010997,2]
[361008017,1747199446129,-151.0,0.00010997,2]
[361008019,1747199446139,-151.0,0.00010997,2]
[361008021,1747199446148,-12793.3158573,0.00010997,2]
[361008023,1747199446157,-151.0,0.00010997,2]
[361008025,1747199446167,-536.713771,0.00010997,2]
[361008027,1747199446177,-536.713771,0.00010997,2]
[361008029,1747199446186,-151.0,0.00010997,2]
[361008031,1747199446195,-151.0,0.00010997,2]
[361008033,1747199446204,-151.0,0.00010997,2]
[361008035,1747199446213,-151.0,0.00010997,2]
[361008037,1747199446222,-174.652205,0.00010997,2]
[361008039,1747199446234,-155.185086,0.00010997,2]
[361008041,1747199446243,-155.185086,0.00010997,2]
[361008043,1747199446252,-5637.5527169,0.00010997,2]
[361008044,1747199446262,-151.0,0.00010997,2]
[361008046,1747199446271,-151.0,0.00010997,2]
[361008049,1747199446281,-283.351428,0.00010997,2]
[361008052,1747199446290,-781.536897,0.00010997,2]
[361008054,1747199446300,-781.536897,0.00010997,2]
[361008056,1747199446309,-500.0,0.00010998,2]
[361008058,1747199446318,-300.0,0.00010999,2]
[361008060,1747199446327,-300.0,0.00010999,2]
[361008062,1747199446337,-34386.56,0.00010999,2]
[361008064,1747199446347,-400.0,0.00010999,2]
[361008066,1747199446356,-154.08842127,0.00010999,2]
[361008068,1747199446366,-400.78648338,0.00010999,2]
[361008070,1747199446375,-500.0,0.00010999,2]
[361008072,1747199446385,-150.05,0.00010999,2]
[361008074,1747199446394,-151.0,0.00010999,2]
[361008076,1747199446404,-300.0,0.00010999,2]
[361008078,1747199446413,-662.0,0.00010999,2]
[361008080,1747199446424,-1188734.20805004,0.00011,2]
[361008082,1747199446433,-6022.39,0.00011,2]
[361008084,1747199446443,-804274.13494908,0.00011,2]
[361008087,1747199446458,-384.92711822,0.00011,2]
[361008202,1747199447589,-383.46973203,0.00010958,2]
[361008205,1747199447608,-16.53026797,0.00010958,2]
[361008207,1747199447618,-400.0,0.00010958,2]
[361008209,1747199447631,-3910.86973203,0.00011,2]
[361008211,1747199447644,-3899.6,0.00011,2]
[361008214,1747199447655,-1078.61063024,0.00011,2]
[361008217,1747199447676,-26769.08249561,0.00011,2]
[361008219,1747199447687,-41971.64858694,0.00011,2]
[361008221,1747199447699,-6610.4948161,0.00011,2]
[361008223,1747199447710,-2152.3649834,0.00011,2]
[361008225,1747199447721,-307.475,0.00011,2]
[361008228,1747199447732,-681.62153053,0.00011,2]
[361008231,1747199447755,-992.0,0.00011,2]
[361008233,1747199447767,-104187.90580269,0.00011,2]
[361008235,1747199447778,-6177.18706618,0.00011,2]
[361008300,1747199448532,-400.0,0.00010958,2]
[361008302,1747199448541,-400.0,0.00010958,2]
[361008304,1747199448551,-400.0,0.00010958,2]
[361008306,1747199448560,-235.71016166,0.00010958,2]
[361008308,1747199448572,-164.28983834,0.00010958,2]
[361008310,1747199448582,-400.0,0.00010958,2]
[361008312,1747199448591,-196.85653999,0.00010958,2]
[361008314,1747199448601,-151.0,0.00010997,2]
[361008316,1747199448610,-29156.49900558,0.00011,2]
[361008330,1747199448757,-4117.41467043,0.00011,2]
[361008333,1747199448776,-10727.57145649,0.00011,2]
[361008335,1747199448786,-4571.58729509,0.00011,2]
[361008337,1747199448797,-400.0,0.00011,2]
[361008339,1747199448808,-393.78978646,0.00011,2]
[361008344,1747199448839,-28935.1957,0.00010858,2]
[361008346,1747199448848,-12664.12694959,0.00011,2]
[361008348,1747199448859,-5154.00002,0.00011,2]
[361008651,1747199551856,450.0,0.0001,2]
[361008652,1747199669189,601.94,8.219e-05,2]
[361008653,1747199708416,150.0,0.00010011,7]
[361008654,1747199745277,518.0,0.0001,2]
[361008656,1747200302878,297.34,9.978e-05,2]
[361008657,1747200379102,159.38,9.973e-05,2]
[361008660,1747200480497,1000.0,9.981e-05,2]
[361008686,1747200632167,-446.57794975,0.00010111,2]
[361008687,1747200632178,-2848.02,0.00010112,2]
[361008688,1747200632187,-250.0,0.00010123,2]
[361008689,1747200632196,-190.44,0.00010134,2]
[361008690,1747200632205,-601.94,0.00010477,2]
[361008691,1747200632215,-226.7489,0.00010858,2]
[361008692,1747200632224,-317.5857,0.00010858,2]
[361008693,1747200632234,-207.4,0.00010893,2]
[361008694,1747200632245,-300.0,0.00010898,2]
[361008695,1747200632254,-1200.0,0.00010899,2]
[361008696,1747200632263,-300.0,0.00010899,2]
[361008697,1747200632272,-1900.9464,0.000109,2]
[361008698,1747200632283,-228.25787169,0.000109,2]
[361008699,1747200632292,-471.422629,0.000109,2]
[361008700,1747200632301,-200.845898,0.000109,2]
[361008701,1747200632311,-399.15954263,0.000109,2]
[361008702,1747200632321,-515.03834856,0.000109,2]
[361008703,1747200632331,-211.4976815,0.00010944,2]
[361008704,1747200632341,-165.4,0.00010948,2]
[361008705,1747200632351,-151.0,0.00010951,2]
[361008706,1747200632360,-219.86998613,0.00010951,2]
[361008707,1747200632371,-668.65185757,0.00010951,2]
[361008708,1747200632381,-287.61899177,0.00010951,2]
[361008709,1747200632392,-1000.0,0.00010957,2]
[361008710,1747200632402,-150.0,0.00010957,2]
[361008711,1747200632414,-4137.12953,0.00010958,2]
[361008712,1747200632423,-161.839733,0.00010958,2]
[361008713,1747200632434,-6633.823323,0.00010958,2]
[361008714,1747200632445,-1643.265138,0.00010958,2]
[361008715,1747200632456,-400.0,0.00010958,2]
[361008716,1747200632465,-160.07636261,0.00010958,2]
[361008717,1747200632474,-925.59,0.00010958,2]
[361008718,1747200632483,-400.0,0.00010958,2]
[361008719,1747200632494,-400.0,0.00010958,2]
[361008720,1747200632503,-400.0,0.00010958,2]
[361008721,1747200632513,-400.0,0.00010958,2]
[361008722,1747200632522,-476.54942531,0.00010958,2]
[361008723,1747200632531,-400.0,0.00010958,2]
[361008724,1747200632541,-400.0,0.00010958,2]
[361008725,1747200632550,-400.0,0.00010958,2]
[361008726,1747200632559,-400.0,0.00010958,2]
[361008727,1747200632569,-400.0,0.00010958,2]
[361008728,1747200632578,-353.21623279,0.00010958,2]
[361008729,1747200632587,-485.7,0.00010958,2]
[361008730,1747200632597,-400.0,0.00010958,2]
[361008731,1747200632608,-273.89598106,0.00010958,2]
[361008732,1747200632617,-400.0,0.00010958,2]
[361008733,1747200632626,-400.0,0.00010958,2]
[361008734,1747200632635,-400.0,0.00010958,2]
[361008735,1747200632644,-400.0,0.00010958,2]
[361008736,1747200632654,-400.0,0.00010958,2]
[361008737,1747200632664,-400.0,0.00010958,2]
[361008738,1747200632673,-577.8,0.00010958,2]
[361008739,1747200632682,-400.0,0.00010958,2]
[361008740,1747200632692,-400.0,0.00010958,2]
[361008741,1747200632701,-400.0,0.00010958,2]
[361008742,1747200632710,-433.71,0.00010958,2]
[361008743,1747200632719,-400.0,0.00010958,2]
[361008744,1747200632728,-400.0,0.00010958,2]
[361008745,1747200632738,-400.0,0.00010958,2]
[361008746,1747200632747,-400.0,0.00010958,2]
[361008747,1747200632756,-400.0,0.00010958,2]
[361008748,1747200632765,-400.0,0.00010958,2]
[361008749,1747200632775,-400.0,0.00010958,2]
[361008750,1747200632783,-400.0,0.00010958,2]
[361008751,1747200632794,-400.0,0.00010958,2]
[361008752,1747200632803,-306.54488533,0.00010958,2]
[361008753,1747200632813,-403.63422779,0.00010958,2]
[361008754,1747200632823,-404.4408834,0.00010958,2]
[361008755,1747200632833,-400.0,0.00010958,2]
[361008756,1747200632842,-400.0,0.00010958,2]
[361008757,1747200632851,-200.0,0.00010958,2]
[361008758,1747200632863,-418.67,0.00010958,2]
[361008759,1747200632872,-487.43,0.00010958,2]
[361008760,1747200632882,-400.0,0.00010958,2]
[361008761,1747200632893,-400.0,0.00010958,2]
[361008762,1747200632903,-400.0,0.00010958,2]
[361008763,1747200632912,-400.0,0.00010958,2]
[361008764,1747200632923,-162.26537278,0.00010958,2]
[361008765,1747200632932,-536.42134917,0.00010958,2]
[361008766,1747200632942,-519.16765764,0.00010958,2]
[361008767,1747200632951,-400.0,0.00010958,2]
[361008768,1747200632960,-400.0,0.00010958,2]
[361008769,1747200632969,-400.0,0.00010958,2]
[361008770,1747200632981,-400.0,0.00010958,2]
[361008771,1747200632991,-400.0,0.00010958,2]
[361008772,1747200633001,-400.0,0.00010958,2]
[361008773,1747200633011,-386.87115202,0.00010958,2]
[361008774,1747200633021,-400.0,0.00010958,2]
[361008775,1747200633031,-427.0540203,0.00010958,2]
[361008776,1747200633040,-400.0,0.00010958,2]
[361008777,1747200633050,-263.06,0.00010958,2]
[361008778,1747200633060,-400.0,0.00010958,2]
[361008779,1747200633070,-400.49156248,0.00010958,2]
[361008780,1747200633080,-400.0,0.00010958,2]
[361008781,1747200633089,-403.46152772,0.00010958,2]
[361008782,1747200633099,-400.0,0.00010958,2]
[361008783,1747200633108,-400.0,0.00010958,2]
[361008784,1747200633117,-400.0,0.00010958,2]
[361008785,1747200633127,-450.82212159,0.00010958,2]
[361008786,1747200633136,-400.0,0.00010958,2]
[361008787,1747200633146,-600.77,0.00010958,2]
[361008788,1747200633155,-400.0,0.00010958,2]
[361008789,1747200633166,-400.0,0.00010958,2]
[361008790,1747200633175,-400.0,0.00010958,2]
[361008791,1747200633184,-292.00779158,0.00010958,2]
[361008792,1747200633194,-400.0,0.00010958,2]
[361008793,1747200633203,-427.23,0.00010958,2]
[361008794,1747200633212,-404.48974708,0.00010958,2]
[361008795,1747200633222,-400.0,0.00010958,2]
[361008796,1747200633232,-400.0,0.00010958,2]
[361008797,1747200633241,-400.0,0.00010958,2]
[361008798,1747200633251,-400.0,0.00010958,2]
[361008799,1747200633260,-580.09,0.00010958,2]
[361008800,1747200633270,-400.0,0.00010958,2]
[361008801,1747200633280,-400.0,0.00010958,2]
[361008802,1747200633290,-400.0,0.00010958,2]
[361008803,1747200633299,-400.0,0.00010958,2]
[361008804,1747200633308,-400.0,0.00010958,2]
[361008805,1747200633317,-513.93666247,0.00010958,2]
[361008806,1747200633326,-400.0,0.00010958,2]
[361008807,1747200633336,-400.0,0.00010958,2]
[361008808,1747200633345,-400.0,0.00010958,2]
[361008809,1747200633355,-400.0,0.00010958,2]
[361008810,1747200633365,-400.0,0.00010958,2]
[361008811,1747200633374,-400.0,0.00010958,2]
[361008812,1747200633383,-400.0,0.00010958,2]
[361008813,1747200633396,-400.0,0.00010958,2]
[361008814,1747200633406,-400.0,0.00010958,2]
[361008815,1747200633419,-400.0,0.00010958,2]
[361008816,1747200633429,-400.0,0.00010958,2]
[361008817,1747200633440,-400.0,0.00010958,2]
[361008818,1747200633449,-394.42040919,0.00010958,2]
[361008819,1747200633459,-400.0,0.00010958,2]
[361008820,1747200633469,-400.0,0.00010958,2]
[361008821,1747200633479,-400.0,0.00010958,2]
[361008822,1747200633488,-400.0,0.00010958,2]
[361008823,1747200633498,-400.0,0.00010958,2]
[361008824,1747200633508,-400.0,0.00010958,2]
[361008825,1747200633518,-401.69765442,0.00010958,2]
[361008826,1747200633528,-400.0,0.00010958,2]
[361008827,1747200633538,-400.0,0.00010958,2]
[361008828,1747200633548,-184.50347047,0.00010958,2]
[361008829,1747200633558,-558.99,0.00010958,2]
[361008830,1747200633568,-208.26321372,0.00010958,2]
[361008831,1747200633578,-400.0,0.00010958,2]
[361008832,1747200633588,-400.0,0.00010958,2]
[361008833,1747200633597,-416.71,0.00010958,2]
[361008834,1747200633607,-400.0,0.00010958,2]
[361008835,1747200633617,-400.0,0.00010958,2]
[361008836,1747200633630,-400.0,0.00010958,2]
[361008837,1747200633640,-400.0,0.00010958,2]
[361008838,1747200633650,-400.0,0.00010958,2]
[361008839,1747200633660,-400.0,0.00010958,2]
[361008840,1747200633671,-400.0,0.00010958,2]
[361008841,1747200633682,-400.0,0.00010958,2]
[361008842,1747200633692,-400.0,0.00010958,2]
[361008843,1747200633702,-504.5802956,0.00010958,2]
[361008844,1747200633712,-400.0,0.00010958,2]
[361008845,1747200633722,-400.0,0.00010958,2]
[361008846,1747200633732,-363.68676935,0.00010958,2]
[361008847,1747200633743,-400.0,0.00010958,2]
[361008848,1747200633753,-519.01137961,0.00010958,2]
[361008849,1747200633763,-400.0,0.00010958,2]
[361008850,1747200633773,-400.0,0.00010958,2]
[361008851,1747200633784,-400.0,0.00010958,2]
[361008852,1747200633794,-400.0,0.00010958,2]
[361008853,1747200633805,-410.58084172,0.00010958,2]
[361008854,1747200633815,-400.0,0.00010958,2]
[361008855,1747200633825,-400.0,0.00010958,2]
[361008856,1747200633835,-400.0,0.00010958,2]
[361008857,1747200633844,-400.0,0.00010958,2]
[361008858,1747200633855,-400.0,0.00010958,2]
[361008859,1747200633864,-400.0,0.00010958,2]
[361008860,1747200633874,-462.50297382,0.00010958,2]
[361008861,1747200633884,-400.0,0.00010958,2]
[361008862,1747200633894,-404.93577775,0.00010958,2]
[361008863,1747200633904,-409.08059142,0.00010958,2]
[361008864,1747200633914,-502.26,0.00010958,2]
[361008865,1747200633923,-549.51932763,0.00010958,2]
[361008866,1747200633934,-400.0,0.00010958,2]
[361008867,1747200633944,-166.17743234,0.00010958,2]
[361008868,1747200633954,-400.0,0.00010958,2]
[361008869,1747200633965,-400.0,0.00010958,2]
[361008870,1747200633979,-571.86,0.00010958,2]
[361008871,1747200633991,-684.05,0.00010958,2]
[361008872,1747200634002,-400.0,0.00010958,2]
[361008873,1747200634012,-500.0,0.00010958,2]
[361008874,1747200634023,-436.39,0.00010958,2]
[361008875,1747200634034,-400.0,0.00010958,2]
[361008876,1747200634044,-400.0,0.00010958,2]
[361008877,1747200634055,-400.0,0.00010958,2]
[361008878,1747200634247,-400.0,0.00010958,2]
[361008879,1747200634257,-400.0,0.00010958,2]
[361008880,1747200634267,-473.61,0.00010958,2]
[361008881,1747200634277,-400.0,0.00010958,2]
[361008882,1747200634286,-400.0,0.00010958,2]
[361008883,1747200634296,-1358.96,0.00010958,2]
[361008884,1747200634305,-400.0,0.00010958,2]
[361008885,1747200634316,-400.0,0.00010958,2]
[361008886,1747200634325,-400.0,0.00010958,2]
[361008887,1747200634335,-400.0,0.00010958,2]
[361008888,1747200634344,-400.0,0.00010958,2]
[361008889,1747200634354,-400.0,0.00010958,2]
[361008890,1747200634364,-1542.82,0.00010958,2]
[361008891,1747200634374,-400.0,0.00010958,2]
[361008892,1747200634384,-400.0,0.00010958,2]
[361008893,1747200634393,-362.44,0.00010958,2]
[361008894,1747200634403,-400.0,0.00010958,2]
[361008895,1747200634413,-400.0,0.00010958,2]
[361008896,1747200634422,-709.48,0.00010958,2]
[361008897,1747200634431,-400.0,0.00010958,2]
[361008898,1747200634441,-448.91006655,0.00010958,2]
[361008899,1747200634451,-400.0,0.00010958,2]
[361008900,1747200634460,-400.0,0.00010958,2]
[361008901,1747200634469,-400.0,0.00010958,2]
[361008902,1747200634479,-597.69,0.00010958,2]
[361008903,1747200634489,-404.64695543,0.00010958,2]
[361008904,1747200634498,-400.0,0.00010958,2]
[361008905,1747200634508,-400.0,0.00010958,2]
[361008906,1747200634518,-725.68,0.00010958,2]
[361008907,1747200634529,-446.23,0.00010958,2]
[361008908,1747200634539,-400.0,0.00010958,2]
[361008909,1747200634549,-400.0,0.00010958,2]
[361008910,1747200634559,-366.8798407,0.00010958,2]
[361008911,1747200634570,-434.88,0.00010958,2]
[361008912,1747200634579,-789.65,0.00010958,2]
[361008913,1747200634590,-400.0,0.00010958,2]
[361008914,1747200634600,-477.1,0.00010958,2]
[361008915,1747200634610,-168.97434338,0.00010958,2]
[361008916,1747200634620,-400.0,0.00010958,2]
[361008917,1747200634630,-428.63,0.00010958,2]
[361008918,1747200634639,-400.0,0.00010958,2]
[361008919,1747200634649,-400.0,0.00010958,2]
[361008920,1747200634661,-1330.88,0.00010958,2]
[361008921,1747200634670,-511.59,0.00010958,2]
[361008922,1747200634680,-414.04,0.00010958,2]
[361008923,1747200634690,-805.51,0.00010958,2]
[361008924,1747200634700,-400.0,0.00010958,2]
[361008925,1747200634710,-400.0,0.00010958,2]
[361008926,1747200634720,-409.95838347,0.00010958,2]
[361008927,1747200634730,-400.0,0.00010958,2]
[361008928,1747200634739,-400.0,0.00010958,2]
[361008929,1747200634749,-400.0,0.00010958,2]
[361008930,1747200634759,-400.0,0.00010958,2]
[361008931,1747200634769,-400.0,0.00010958,2]
[361008932,1747200634779,-400.0,0.00010958,2]
[361008933,1747200634789,-662.61,0.00010958,2]
[361008934,1747200634799,-714.22,0.00010958,2]
[361008935,1747200634808,-409.44184873,0.00010958,2]
[361008936,1747200634818,-643.39,0.00010958,2]
[361008937,1747200634828,-400.0,0.00010958,2]
[361008938,1747200634838,-369.51651449,0.00010958,2]
[361008939,1747200634848,-400.0,0.00010958,2]
[361008940,1747200634857,-400.0,0.00010958,2]
[361008941,1747200634867,-400.0,0.00010958,2]
[361008942,1747200634876,-400.0,0.00010958,2]
[361008943,1747200634885,-479.42,0.00010958,2]
[361008944,1747200634895,-400.0,0.00010958,2]
[361008945,1747200634904,-400.0,0.00010958,2]
[361008946,1747200634915,-400.0,0.00010958,2]
[361008947,1747200634924,-414.91,0.00010958,2]
[361008948,1747200634934,-265.44618525,0.00010958,2]
[361008949,1747200634944,-303.08650986,0.00010958,2]
[361008950,1747200634954,-400.0,0.00010958,2]
[361008951,1747200634964,-974.32,0.00010958,2]
[361008952,1747200634976,-434.33,0.00010958,2]
[361008953,1747200634986,-400.0,0.00010958,2]
[361008954,1747200634995,-463.91,0.00010958,2]
[361008955,1747200635005,-1312.53,0.00010958,2]
[361008956,1747200635017,-438.35,0.00010958,2]
[361008957,1747200635027,-445.15,0.00010958,2]
[361008958,1747200635037,-400.0,0.00010958,2]
[361008959,1747200635047,-1378.74,0.00010958,2]
[361008960,1747200635057,-832.44,0.00010958,2]
[361008961,1747200635066,-400.0,0.00010958,2]
[361008962,1747200635076,-493.09,0.00010958,2]
[361008963,1747200635085,-400.0,0.00010958,2]
[361008964,1747200635095,-400.0,0.00010958,2]
[361008965,1747200635104,-711.9,0.00010958,2]
[361008966,1747200635114,-400.0,0.00010958,2]
[361008967,1747200635125,-400.0,0.00010958,2]
[361008968,1747200635135,-400.0,0.00010958,2]
[361008969,1747200635144,-400.0,0.00010958,2]
[361008970,1747200635154,-400.0,0.00010958,2]
[361008971,1747200635163,-144.00859115,0.00010958,2]
[361008972,1747200635752,-874.34140885,0.00010958,2]
[361008973,1747200635762,-124.17647381,0.00010958,2]
[361008974,1747200637732,-275.82352619,0.00010958,2]
[361008975,1747200637742,-400.0,0.00010958,2]
[361008976,1747200637752,-400.0,0.00010958,2]
[361008977,1747200637762,-477.44,0.00010958,2]
[361008978,1747200637774,-789.14,0.00010958,2]
[361008979,1747200637783,-400.0,0.00010958,2]
[361008980,1747200637795,-1049.28,0.00010958,2]
[361008981,1747200637805,-400.0,0.00010958,2]
[361008982,1747200637815,-660.79,0.00010958,2]
[361008983,1747200637824,-34.53285636,0.00010958,2]
[361008985,1747200640085,-365.46714364,0.00010958,2]
[361008986,1747200640094,-400.0,0.00010958,2]
[361008987,1747200640103,-232.31086454,0.00010958,2]
[361008988,1747200640117,-253.59913546,0.00010958,2]
[361008989,1747200640126,-548.85,0.00010958,2]
[361008990,1747200640135,-831.16,0.00010958,2]
[361008991,1747200640145,-400.0,0.00010958,2]
[361008992,1747200640154,-400.0,0.00010958,2]